[Event "Titled Tuesday Blitz September 27 Early 2022"]
[White "Manukian, Artak"]
[Black "Ilkhomi, Jaloliddin"]
[WhiteFideId "13301373"]
[BlackFideId "14700948"]
[WhiteElo "2498"]
[BlackElo "1440"]
[Result "1-0"]
[Round "09"]
[TimeControl "180+1"]
[Date "2022.09.27"]
[WhiteClock "0:00:16"]
[BlackClock "0:00:02"]

1. e4 {[%clk 0:03:00]}  e6 {[%clk 0:02:56]} 2. d4 {[%clk 0:03:00]}  d5 {[%clk 0:02:57]} 3. e5 {[%clk 0:03:01]}  c5 {[%clk 0:02:57]} 4. c3 {[%clk 0:03:02]}  Qb6 {[%clk 0:02:57]} 5. Nf3 {[%clk 0:03:03]}  Bd7 {[%clk 0:02:58]} 6. a3 {[%clk 0:03:03]}  Bb5 {[%clk 0:02:58]} 7. c4 {[%clk 0:03:04]}  Bxc4 {[%clk 0:02:53]} 8. Bxc4 {[%clk 0:03:04]}  dxc4 {[%clk 0:02:54]} 9. Nbd2 {[%clk 0:03:03]}  Nd7 {[%clk 0:02:49]} 10. Nxc4 {[%clk 0:03:03]}  Qc6 {[%clk 0:02:44]} 11. Ne3 {[%clk 0:02:36]}  O-O-O {[%clk 0:02:38]} 12. d5 {[%clk 0:02:29]}  exd5 {[%clk 0:02:36]} 13. Qxd5 {[%clk 0:02:30]}  Qxd5 {[%clk 0:02:35]} 14. Nxd5 {[%clk 0:02:31]}  Ne7 {[%clk 0:02:26]} 15. Nxe7+ {[%clk 0:02:28]}  Bxe7 {[%clk 0:02:27]} 16. Bf4 {[%clk 0:02:28]}  Rhe8 {[%clk 0:02:27]} 17. O-O-O {[%clk 0:02:26]}  Nf8 {[%clk 0:02:20]} 18. Rxd8+ {[%clk 0:02:21]}  Rxd8 {[%clk 0:02:21]} 19. Bg5 {[%clk 0:02:16]}  Re8 {[%clk 0:02:18]} 20. Bxe7 {[%clk 0:02:06]}  Rxe7 {[%clk 0:02:18]} 21. Re1 {[%clk 0:02:06]}  Nd7 {[%clk 0:02:18]} 22. Kd2 {[%clk 0:02:05]}  Kc7 {[%clk 0:02:18]} 23. Kd3 {[%clk 0:01:49]}  Kc6 {[%clk 0:02:17]} 24. Ke4 {[%clk 0:01:48]}  f6 {[%clk 0:01:52]} 25. Kf4 {[%clk 0:01:44]}  g5+ {[%clk 0:01:35]} 26. Kf5 {[%clk 0:01:41]}  fxe5 {[%clk 0:01:36]} 27. Nxg5 {[%clk 0:01:36]}  h6 {[%clk 0:01:27]} 28. Ne4 {[%clk 0:01:31]}  b5 {[%clk 0:01:24]} 29. Rd1 {[%clk 0:01:25]}  Rg7 {[%clk 0:01:09]} 30. g3 {[%clk 0:01:17]}  h5 {[%clk 0:01:07]} 31. Rd6+ {[%clk 0:01:13]}  Kc7 {[%clk 0:01:08]} 32. Ra6 {[%clk 0:01:09]}  Kb7 {[%clk 0:00:48]} 33. Rh6 {[%clk 0:01:07]}  a5 {[%clk 0:00:45]} 34. Rxh5 {[%clk 0:01:02]}  b4 {[%clk 0:00:42]} 35. axb4 {[%clk 0:01:02]}  cxb4 {[%clk 0:00:41]} 36. Rh6 {[%clk 0:00:53]}  a4 {[%clk 0:00:37]} 37. Rd6 {[%clk 0:00:52]}  Nb6 {[%clk 0:00:31]} 38. Rd2 {[%clk 0:00:47]}  Kc6 {[%clk 0:00:24]} 39. h4 {[%clk 0:00:45]}  Nc4 {[%clk 0:00:22]} 40. Rc2 {[%clk 0:00:39]}  Kd5 {[%clk 0:00:22]} 41. Nf6+ {[%clk 0:00:37]}  Kd4 {[%clk 0:00:22]} 42. h5 {[%clk 0:00:35]}  b3 {[%clk 0:00:21]} 43. Rc1 {[%clk 0:00:32]}  a3 {[%clk 0:00:18]} 44. bxa3 {[%clk 0:00:31]}  Nxa3 {[%clk 0:00:19]} 45. h6 {[%clk 0:00:30]}  Rb7 {[%clk 0:00:08]} 46. h7 {[%clk 0:00:30]}  Rb8 {[%clk 0:00:07]} 47. g4 {[%clk 0:00:23]}  b2 {[%clk 0:00:07]} 48. Rd1+ {[%clk 0:00:23]}  Kc3 {[%clk 0:00:07]} 49. g5 {[%clk 0:00:23]}  Kc2 {[%clk 0:00:08]} 50. Re1 {[%clk 0:00:23]}  Nc4 {[%clk 0:00:05]} 51. g6 {[%clk 0:00:20]}  Nd2 {[%clk 0:00:04]} 52. g7 {[%clk 0:00:18]}  Nf3 {[%clk 0:00:02]} 53. Re2+ {[%clk 0:00:17]}  Kd3 {[%clk 0:00:02]} 54. Rxb2 {[%clk 0:00:18]}  Rxb2 {[%clk 0:00:02]} 55. g8=Q {[%clk 0:00:18]}  Rxf2 {[%clk 0:00:03]} 56. Ke6 {[%clk 0:00:18]}  Ke2 {[%clk 0:00:04]} 57. Qg4 {[%clk 0:00:18]}  Ke3 {[%clk 0:00:04]} 58. Qe4+ {[%clk 0:00:18]}  Kd2 {[%clk 0:00:04]} 59. h8=Q {[%clk 0:00:19]}  Nd4+ {[%clk 0:00:04]} 60. Kd5 {[%clk 0:00:17]}  Nf3 {[%clk 0:00:04]} 61. Qh6+ {[%clk 0:00:17]}  Kd1 {[%clk 0:00:04]} 62. Qd3+ {[%clk 0:00:16]}  Ke1 {[%clk 0:00:05]} 63. Qhe3+ {[%clk 0:00:16]}  Re2 {[%clk 0:00:02]} 64. Qdxe2# {[%clk 0:00:16]} 1-0


[Site "https://www.chess.com"]

[Event "Titled Tuesday Blitz September 27 Early 2022"]
[White "Mickiewicz, Piotr"]
[Black "Rosen, Eric"]
[WhiteFideId "1114891"]
[BlackFideId "2032562"]
[WhiteElo "2246"]
[BlackElo "2362"]
[Result "1-0"]
[Round "09"]
[TimeControl "180+1"]
[Date "2022.09.27"]
[WhiteClock "0:00:52"]
[BlackClock "0:00:01"]

1. Nf3 {[%clk 0:03:00]}  d5 {[%clk 0:02:59]} 2. g3 {[%clk 0:03:01]}  Nf6 {[%clk 0:02:59]} 3. Bg2 {[%clk 0:03:02]}  b6 {[%clk 0:02:56]} 4. O-O {[%clk 0:03:03]}  Bb7 {[%clk 0:02:57]} 5. d3 {[%clk 0:03:03]}  e6 {[%clk 0:02:56]} 6. e4 {[%clk 0:03:02]}  dxe4 {[%clk 0:02:56]} 7. Nfd2 {[%clk 0:03:02]}  Be7 {[%clk 0:02:53]} 8. Nc3 {[%clk 0:03:01]}  O-O {[%clk 0:02:53]} 9. Ndxe4 {[%clk 0:03:01]}  Nxe4 {[%clk 0:02:53]} 10. Nxe4 {[%clk 0:03:00]}  Nc6 {[%clk 0:02:53]} 11. Qh5 {[%clk 0:02:58]}  Nd4 {[%clk 0:02:18]} 12. Nf6+ {[%clk 0:02:52]}  Bxf6 {[%clk 0:02:18]} 13. Bxb7 {[%clk 0:02:52]}  Rb8 {[%clk 0:02:18]} 14. Be4 {[%clk 0:02:50]}  g6 {[%clk 0:02:13]} 15. Qd1 {[%clk 0:02:51]}  c5 {[%clk 0:01:59]} 16. c3 {[%clk 0:02:50]}  Nf5 {[%clk 0:01:58]} 17. Qe2 {[%clk 0:02:51]}  Bg7 {[%clk 0:01:57]} 18. Bf4 {[%clk 0:02:44]}  e5 {[%clk 0:01:49]} 19. Bd2 {[%clk 0:02:39]}  Qd7 {[%clk 0:01:34]} 20. a4 {[%clk 0:02:37]}  Ne7 {[%clk 0:01:17]} 21. Bg2 {[%clk 0:02:22]}  Rfd8 {[%clk 0:01:15]} 22. Rfd1 {[%clk 0:01:51]}  Qxd3 {[%clk 0:01:12]} 23. Qxd3 {[%clk 0:01:51]}  Rxd3 {[%clk 0:01:13]} 24. Bg5 {[%clk 0:01:51]}  Rxd1+ {[%clk 0:00:58]} 25. Rxd1 {[%clk 0:01:52]}  f6 {[%clk 0:00:59]} 26. Rd7 {[%clk 0:01:51]}  fxg5 {[%clk 0:00:32]} 27. Rxe7 {[%clk 0:01:50]}  a6 {[%clk 0:00:32]} 28. Bd5+ {[%clk 0:01:48]}  Kh8 {[%clk 0:00:32]} 29. c4 {[%clk 0:01:44]}  h5 {[%clk 0:00:26]} 30. Re6 {[%clk 0:01:38]}  b5 {[%clk 0:00:20]} 31. Rxa6 {[%clk 0:01:15]}  bxa4 {[%clk 0:00:14]} 32. Rxg6 {[%clk 0:01:11]}  Rxb2 {[%clk 0:00:12]} 33. Rxg5 {[%clk 0:01:11]}  a3 {[%clk 0:00:03]} 34. Rxh5+ {[%clk 0:01:08]}  Bh6 {[%clk 0:00:04]} 35. Rxh6+ {[%clk 0:01:08]}  Kg7 {[%clk 0:00:04]} 36. Ra6 {[%clk 0:01:08]}  a2 {[%clk 0:00:05]} 37. Kg2 {[%clk 0:01:08]}  Kf8 {[%clk 0:00:02]} 38. Ra7 {[%clk 0:01:05]}  Ke8 {[%clk 0:00:01]} 39. h4 {[%clk 0:01:05]}  Kd8 {[%clk 0:00:02]} 40. h5 {[%clk 0:01:03]}  Kc8 {[%clk 0:00:02]} 41. h6 {[%clk 0:01:03]}  Kb8 {[%clk 0:00:03]} 42. Ra8+ {[%clk 0:01:03]}  Kc7 {[%clk 0:00:03]} 43. Ra7+ {[%clk 0:01:02]}  Kb6 {[%clk 0:00:02]} 44. Ra8 {[%clk 0:01:01]}  Kc7 {[%clk 0:00:01]} 45. h7 {[%clk 0:01:01]}  Rb8 {[%clk 0:00:01]} 46. Rxb8 {[%clk 0:00:54]}  a1=Q {[%clk 0:00:01]} 47. h8=Q {[%clk 0:00:53]}  Qa6 {[%clk 0:00:01]} 48. Qd8# {[%clk 0:00:52]} 1-0


[Site "https://www.chess.com"]

[Event "Titled Tuesday Blitz September 27 Early 2022"]
[White "Moreby, James"]
[Black "Vargas, Mauricio"]
[WhiteFideId "427756"]
[BlackFideId "4404572"]
[WhiteElo "1873"]
[BlackElo "2004"]
[Result "1-0"]
[Round "09"]
[TimeControl "180+1"]
[Date "2022.09.27"]
[WhiteClock "0:02:06"]
[BlackClock "0:00:08"]

1. Nf3 {[%clk 0:03:00]}  Nc6 {[%clk 0:01:47]} 2. d4 {[%clk 0:02:59]}  e5 {[%clk 0:01:48]} 3. d5 {[%clk 0:02:57]}  Nb4 {[%clk 0:01:42]} 4. a3 {[%clk 0:02:54]}  e4 {[%clk 0:01:36]} 5. axb4 {[%clk 0:02:43]}  exf3 {[%clk 0:01:36]} 6. exf3 {[%clk 0:02:42]}  Bxb4+ {[%clk 0:01:36]} 7. c3 {[%clk 0:02:43]}  Bc5 {[%clk 0:01:33]} 8. Bd3 {[%clk 0:02:43]}  d6 {[%clk 0:01:29]} 9. O-O {[%clk 0:02:38]}  Ne7 {[%clk 0:01:23]} 10. b4 {[%clk 0:02:35]}  Bb6 {[%clk 0:01:22]} 11. c4 {[%clk 0:02:36]}  h6 {[%clk 0:01:13]} 12. Qc2 {[%clk 0:02:30]}  O-O {[%clk 0:01:13]} 13. c5 {[%clk 0:02:29]}  dxc5 {[%clk 0:01:05]} 14. bxc5 {[%clk 0:02:29]}  Nxd5 {[%clk 0:01:02]} 15. cxb6 {[%clk 0:02:20]}  Nb4 {[%clk 0:01:01]} 16. Bh7+ {[%clk 0:02:19]}  Kh8 {[%clk 0:01:01]} 17. bxc7 {[%clk 0:02:16]}  Nxc2 {[%clk 0:00:59]} 18. cxd8=Q {[%clk 0:02:15]}  Rxd8 {[%clk 0:00:59]} 19. Bxc2 {[%clk 0:02:15]}  Be6 {[%clk 0:00:57]} 20. Be3 {[%clk 0:02:13]}  Bc4 {[%clk 0:00:54]} 21. Rc1 {[%clk 0:02:12]}  b5 {[%clk 0:00:45]} 22. Be4 {[%clk 0:02:11]}  Bd5 {[%clk 0:00:30]} 23. Bxd5 {[%clk 0:02:07]}  Rxd5 {[%clk 0:00:30]} 24. Nc3 {[%clk 0:02:08]}  Rd3 {[%clk 0:00:30]} 25. Nxb5 {[%clk 0:02:07]}  a6 {[%clk 0:00:27]} 26. Nc7 {[%clk 0:02:07]}  Rad8 {[%clk 0:00:27]} 27. Nxa6 {[%clk 0:02:06]}  Kh7 {[%clk 0:00:23]} 28. Nc5 {[%clk 0:02:07]}  R3d5 {[%clk 0:00:20]} 29. Ne4 {[%clk 0:02:07]}  f5 {[%clk 0:00:18]} 30. Nc3 {[%clk 0:02:07]}  Rd3 {[%clk 0:00:17]} 31. Rd1 {[%clk 0:02:06]}  Rxd1+ {[%clk 0:00:12]} 32. Rxd1 {[%clk 0:02:06]}  Rc8 {[%clk 0:00:11]} 33. Nd5 {[%clk 0:02:06]}  g5 {[%clk 0:00:08]} 34. f4 {[%clk 0:02:06]} 1-0


[Site "https://www.chess.com"]

[Event "Titled Tuesday Blitz September 27 Early 2022"]
[White "Nakamura, Hikaru"]
[Black "Andreikin, Dmitry"]
[WhiteFideId "2016192"]
[BlackFideId "4158814"]
[WhiteElo "2850"]
[BlackElo "2736"]
[Result "1/2-1/2"]
[Round "09"]
[TimeControl "180+1"]
[Date "2022.09.27"]
[WhiteClock "0:00:17"]
[BlackClock "0:00:47"]

1. e4 {[%clk 0:03:00]}  e5 {[%clk 0:02:56]} 2. Nf3 {[%clk 0:03:01]}  Nc6 {[%clk 0:02:57]} 3. Bb5 {[%clk 0:03:00]}  Nf6 {[%clk 0:02:57]} 4. O-O {[%clk 0:02:59]}  Nxe4 {[%clk 0:02:57]} 5. Re1 {[%clk 0:02:59]}  Nd6 {[%clk 0:02:57]} 6. a4 {[%clk 0:02:57]}  Be7 {[%clk 0:02:56]} 7. Nxe5 {[%clk 0:02:54]}  Nxe5 {[%clk 0:02:54]} 8. Rxe5 {[%clk 0:02:55]}  O-O {[%clk 0:02:55]} 9. Bf1 {[%clk 0:02:54]}  Bf6 {[%clk 0:02:53]} 10. Re1 {[%clk 0:02:53]}  Nf5 {[%clk 0:02:53]} 11. c3 {[%clk 0:02:44]}  c5 {[%clk 0:02:53]} 12. d3 {[%clk 0:02:39]}  d5 {[%clk 0:02:53]} 13. Nd2 {[%clk 0:02:39]}  Bd7 {[%clk 0:02:51]} 14. g3 {[%clk 0:02:37]}  Re8 {[%clk 0:02:43]} 15. Rxe8+ {[%clk 0:02:34]}  Qxe8 {[%clk 0:02:42]} 16. Bg2 {[%clk 0:02:34]}  Qe6 {[%clk 0:02:41]} 17. Nf1 {[%clk 0:02:24]}  Re8 {[%clk 0:02:40]} 18. Bf4 {[%clk 0:02:20]}  Bc6 {[%clk 0:02:30]} 19. Bh3 {[%clk 0:02:07]}  d4 {[%clk 0:02:28]} 20. c4 {[%clk 0:02:06]}  g6 {[%clk 0:02:18]} 21. Nd2 {[%clk 0:01:59]}  Ne3 {[%clk 0:01:56]} 22. Bxe6 {[%clk 0:01:13]}  Nxd1 {[%clk 0:01:56]} 23. Bxf7+ {[%clk 0:01:14]}  Kxf7 {[%clk 0:01:56]} 24. Rxd1 {[%clk 0:01:15]}  Bxa4 {[%clk 0:01:53]} 25. Ra1 {[%clk 0:01:06]}  Bc6 {[%clk 0:01:43]} 26. h4 {[%clk 0:01:05]}  a6 {[%clk 0:01:39]} 27. Kf1 {[%clk 0:00:59]}  Be7 {[%clk 0:01:30]} 28. f3 {[%clk 0:00:57]}  Ra8 {[%clk 0:01:28]} 29. Ne4 {[%clk 0:00:57]}  b5 {[%clk 0:01:28]} 30. b3 {[%clk 0:00:53]}  a5 {[%clk 0:01:21]} 31. Ke2 {[%clk 0:00:50]}  a4 {[%clk 0:01:08]} 32. bxa4 {[%clk 0:00:41]}  bxc4 {[%clk 0:01:03]} 33. dxc4 {[%clk 0:00:41]}  Rxa4 {[%clk 0:01:02]} 34. Rxa4 {[%clk 0:00:40]}  Bxa4 {[%clk 0:01:03]} 35. Bd6 {[%clk 0:00:33]}  Bc6 {[%clk 0:00:45]} 36. Bxe7 {[%clk 0:00:11]}  Bxe4 {[%clk 0:00:45]} 37. Bxc5 {[%clk 0:00:12]}  d3+ {[%clk 0:00:45]} 38. Ke3 {[%clk 0:00:11]}  d2 {[%clk 0:00:45]} 39. Kxd2 {[%clk 0:00:11]}  Bxf3 {[%clk 0:00:46]} 40. Be3 {[%clk 0:00:11]}  h5 {[%clk 0:00:45]} 41. Bf4 {[%clk 0:00:11]}  Ke6 {[%clk 0:00:45]} 42. Ke3 {[%clk 0:00:12]}  Bg4 {[%clk 0:00:45]} 43. Kd4 {[%clk 0:00:13]}  Kd7 {[%clk 0:00:45]} 44. Bg5 {[%clk 0:00:14]}  Kc8 {[%clk 0:00:45]} 45. Bf4 {[%clk 0:00:15]}  Bf5 {[%clk 0:00:45]} 46. Bg5 {[%clk 0:00:15]}  Bg4 {[%clk 0:00:46]} 47. Bf4 {[%clk 0:00:16]}  Bf5 {[%clk 0:00:46]} 48. Bg5 {[%clk 0:00:17]}  Bg4 {[%clk 0:00:47]} 1/2-1/2


[Site "https://www.chess.com"]

[Event "Titled Tuesday Blitz September 27 Early 2022"]
[White "Namitbir Singh Walia"]
[Black "De Souza, Cristiano Gomes"]
[WhiteFideId "35071068"]
[BlackFideId "2151758"]
[WhiteElo "1664"]
[BlackElo "2068"]
[Result "1-0"]
[Round "09"]
[TimeControl "180+1"]
[Date "2022.09.27"]
[WhiteClock "0:02:03"]
[BlackClock "0:02:17"]

1. d4 {[%clk 0:03:00]}  Nf6 {[%clk 0:02:58]} 2. c4 {[%clk 0:03:01]}  g6 {[%clk 0:02:59]} 3. g3 {[%clk 0:03:01]}  d6 {[%clk 0:02:59]} 4. Bg2 {[%clk 0:03:02]}  Bg7 {[%clk 0:02:59]} 5. Nf3 {[%clk 0:03:03]}  O-O {[%clk 0:03:00]} 6. O-O {[%clk 0:03:03]}  Nc6 {[%clk 0:03:00]} 7. Nc3 {[%clk 0:03:03]}  Bf5 {[%clk 0:02:59]} 8. Re1 {[%clk 0:03:00]}  Ne4 {[%clk 0:02:58]} 9. Nh4 {[%clk 0:02:39]}  Nxc3 {[%clk 0:02:57]} 10. bxc3 {[%clk 0:02:40]}  Bd7 {[%clk 0:02:56]} 11. Rb1 {[%clk 0:02:39]}  Na5 {[%clk 0:02:54]} 12. Qd3 {[%clk 0:02:35]}  Qc8 {[%clk 0:02:39]} 13. Bg5 {[%clk 0:02:30]}  Re8 {[%clk 0:02:38]} 14. e4 {[%clk 0:02:29]}  c5 {[%clk 0:02:34]} 15. d5 {[%clk 0:02:22]}  a6 {[%clk 0:02:33]} 16. Rb6 {[%clk 0:02:15]}  Qc7 {[%clk 0:02:27]} 17. Reb1 {[%clk 0:02:15]}  Nb3 {[%clk 0:02:17]} 18. R6xb3 {[%clk 0:02:03]} 1-0


[Site "https://www.chess.com"]

[Event "Titled Tuesday Blitz September 27 Early 2022"]
[White "Omariev, Maksim"]
[Black "Cramling Bellon, Anna"]
[WhiteFideId "4193423"]
[BlackFideId "32009232"]
[WhiteElo "2380"]
[BlackElo "1905"]
[Result "1-0"]
[Round "09"]
[TimeControl "180+1"]
[Date "2022.09.27"]
[WhiteClock "0:00:24"]
[BlackClock "0:00:02"]

1. g4 {[%clk 0:03:00]}  d5 {[%clk 0:02:56]} 2. Bg2 {[%clk 0:03:00]}  Bxg4 {[%clk 0:02:51]} 3. c4 {[%clk 0:02:59]}  e6 {[%clk 0:02:35]} 4. Qb3 {[%clk 0:02:59]}  Nc6 {[%clk 0:02:22]} 5. cxd5 {[%clk 0:02:55]}  exd5 {[%clk 0:02:07]} 6. Bxd5 {[%clk 0:02:54]}  Bc5 {[%clk 0:01:10]} 7. Nc3 {[%clk 0:02:18]}  Nd4 {[%clk 0:00:40]} 8. Bxf7+ {[%clk 0:01:47]}  Kf8 {[%clk 0:00:37]} 9. Qc4 {[%clk 0:01:48]}  Nc2+ {[%clk 0:00:32]} 10. Kd1 {[%clk 0:01:47]}  Nxa1 {[%clk 0:00:23]} 11. Bxg8 {[%clk 0:01:46]}  Rxg8 {[%clk 0:00:09]} 12. Qxc5+ {[%clk 0:01:47]}  Qd6 {[%clk 0:00:08]} 13. Qc4 {[%clk 0:01:46]}  Bf5 {[%clk 0:00:06]} 14. e4 {[%clk 0:01:42]}  Be6 {[%clk 0:00:06]} 15. Qa4 {[%clk 0:01:36]}  Rd8 {[%clk 0:00:06]} 16. Nge2 {[%clk 0:01:33]}  Qd3 {[%clk 0:00:06]} 17. Rg1 {[%clk 0:01:26]}  Bb3+ {[%clk 0:00:05]} 18. axb3 {[%clk 0:01:21]}  Qc2+ {[%clk 0:00:05]} 19. Ke1 {[%clk 0:01:22]}  Nxb3 {[%clk 0:00:05]} 20. Rg3 {[%clk 0:01:12]}  c6 {[%clk 0:00:02]} 21. d4 {[%clk 0:00:26]}  b5 {[%clk 0:00:02]} 22. Rf3+ {[%clk 0:00:26]}  Ke7 {[%clk 0:00:02]} 23. Qxa7+ {[%clk 0:00:26]}  Rd7 {[%clk 0:00:02]} 24. Bg5+ {[%clk 0:00:25]}  Ke6 {[%clk 0:00:02]} 25. Nf4+ {[%clk 0:00:24]}  Kd6 {[%clk 0:00:02]} 26. e5# {[%clk 0:00:24]} 1-0


[Site "https://www.chess.com"]

[Event "Titled Tuesday Blitz September 27 Early 2022"]
[White "Pacheco Lugo, Alejandro Jose"]
[Black "Foerster-Yialamas, Lucas"]
[WhiteFideId "3903745"]
[BlackFideId "30901774"]
[WhiteElo "2146"]
[BlackElo "1804"]
[Result "1-0"]
[Round "09"]
[TimeControl "180+1"]
[Date "2022.09.27"]
[WhiteClock "0:00:06"]
[BlackClock "0:00:04"]

1. e4 {[%clk 0:03:00]}  c6 {[%clk 0:03:00]} 2. d4 {[%clk 0:03:00]}  d5 {[%clk 0:03:01]} 3. e5 {[%clk 0:03:00]}  Bf5 {[%clk 0:02:59]} 4. Nd2 {[%clk 0:03:01]}  e6 {[%clk 0:02:57]} 5. Nb3 {[%clk 0:03:00]}  Nd7 {[%clk 0:02:52]} 6. Nf3 {[%clk 0:03:00]}  a6 {[%clk 0:02:50]} 7. a4 {[%clk 0:02:59]}  c5 {[%clk 0:02:50]} 8. dxc5 {[%clk 0:02:57]}  Nxc5 {[%clk 0:02:51]} 9. c4 {[%clk 0:02:57]}  dxc4 {[%clk 0:02:43]} 10. Qxd8+ {[%clk 0:02:54]}  Rxd8 {[%clk 0:02:44]} 11. Nxc5 {[%clk 0:02:49]}  Bxc5 {[%clk 0:02:43]} 12. Bxc4 {[%clk 0:02:49]}  Bb4+ {[%clk 0:02:44]} 13. Ke2 {[%clk 0:02:47]}  Ne7 {[%clk 0:02:43]} 14. Be3 {[%clk 0:02:42]}  O-O {[%clk 0:02:42]} 15. Rhd1 {[%clk 0:02:40]}  Rc8 {[%clk 0:02:41]} 16. h3 {[%clk 0:02:35]}  b5 {[%clk 0:02:37]} 17. Bd3 {[%clk 0:02:31]}  Bxd3+ {[%clk 0:02:35]} 18. Rxd3 {[%clk 0:02:31]}  Rc2+ {[%clk 0:02:36]} 19. Kf1 {[%clk 0:02:31]}  Rxb2 {[%clk 0:02:32]} 20. axb5 {[%clk 0:02:31]}  axb5 {[%clk 0:02:32]} 21. Ra7 {[%clk 0:02:29]}  Nd5 {[%clk 0:02:32]} 22. Rb7 {[%clk 0:02:25]}  Rb1+ {[%clk 0:02:27]} 23. Ke2 {[%clk 0:02:24]}  Nc3+ {[%clk 0:02:25]} 24. Kd2 {[%clk 0:02:20]}  Rc8 {[%clk 0:02:15]} 25. Bd4 {[%clk 0:01:57]}  Rb2+ {[%clk 0:01:26]} 26. Ke3 {[%clk 0:01:18]}  Re2+ {[%clk 0:01:26]} 27. Kf4 {[%clk 0:01:17]}  Nd5+ {[%clk 0:01:24]} 28. Kg3 {[%clk 0:01:17]}  Be1 {[%clk 0:00:47]} 29. Rxb5 {[%clk 0:01:03]}  h5 {[%clk 0:00:26]} 30. Rb1 {[%clk 0:01:00]}  h4+ {[%clk 0:00:22]} 31. Nxh4 {[%clk 0:00:58]}  Rcc2 {[%clk 0:00:22]} 32. Nf3 {[%clk 0:00:14]}  Bc3 {[%clk 0:00:17]} 33. Bxc3 {[%clk 0:00:14]}  Nxc3 {[%clk 0:00:18]} 34. Rf1 {[%clk 0:00:11]}  Ne4+ {[%clk 0:00:18]} 35. Kf4 {[%clk 0:00:12]}  Nxf2 {[%clk 0:00:18]} 36. Rd8+ {[%clk 0:00:12]}  Kh7 {[%clk 0:00:18]} 37. Ng5+ {[%clk 0:00:13]}  Kh6 {[%clk 0:00:19]} 38. Nxf7+ {[%clk 0:00:13]}  Kg6 {[%clk 0:00:19]} 39. Ng5 {[%clk 0:00:09]}  Rc3 {[%clk 0:00:19]} 40. Nf3 {[%clk 0:00:06]}  Nd3+ {[%clk 0:00:14]} 41. Kg3 {[%clk 0:00:05]}  Nxe5 {[%clk 0:00:14]} 42. Rf8 {[%clk 0:00:04]}  Nxf3 {[%clk 0:00:14]} 43. R8xf3 {[%clk 0:00:04]}  Ree3 {[%clk 0:00:15]} 44. Rxe3 {[%clk 0:00:03]}  Rxe3+ {[%clk 0:00:15]} 45. Kf4 {[%clk 0:00:04]}  Re2 {[%clk 0:00:15]} 46. g4 {[%clk 0:00:03]}  e5+ {[%clk 0:00:16]} 47. Kg3 {[%clk 0:00:03]}  Kg5 {[%clk 0:00:16]} 48. h4+ {[%clk 0:00:03]}  Kg6 {[%clk 0:00:16]} 49. Rf5 {[%clk 0:00:03]}  Re3+ {[%clk 0:00:16]} 50. Kf2 {[%clk 0:00:03]}  Re4 {[%clk 0:00:17]} 51. h5+ {[%clk 0:00:03]}  Kh6 {[%clk 0:00:16]} 52. Kg3 {[%clk 0:00:04]}  Re1 {[%clk 0:00:16]} 53. Kh4 {[%clk 0:00:03]}  Rh1+ {[%clk 0:00:16]} 54. Kg3 {[%clk 0:00:03]}  Re1 {[%clk 0:00:17]} 55. Rf7 {[%clk 0:00:03]}  e4 {[%clk 0:00:14]} 56. Kh4 {[%clk 0:00:02]}  Rh1+ {[%clk 0:00:13]} 57. Kg3 {[%clk 0:00:03]}  Re1 {[%clk 0:00:11]} 58. Re7 {[%clk 0:00:03]}  Kg5 {[%clk 0:00:10]} 59. Re5+ {[%clk 0:00:02]}  Kf6 {[%clk 0:00:11]} 60. Rf5+ {[%clk 0:00:03]}  Ke6 {[%clk 0:00:11]} 61. Kf4 {[%clk 0:00:03]}  Rf1+ {[%clk 0:00:06]} 62. Kxe4 {[%clk 0:00:02]}  Re1+ {[%clk 0:00:06]} 63. Kf4 {[%clk 0:00:03]}  Rg1 {[%clk 0:00:06]} 64. Kg5 {[%clk 0:00:03]}  Ke7 {[%clk 0:00:07]} 65. Rf4 {[%clk 0:00:02]}  Ke6 {[%clk 0:00:07]} 66. Kg6 {[%clk 0:00:02]}  Ke5 {[%clk 0:00:07]} 67. Ra4 {[%clk 0:00:02]}  Rb1 {[%clk 0:00:07]} 68. Kxg7 {[%clk 0:00:02]}  Rb7+ {[%clk 0:00:07]} 69. Kh6 {[%clk 0:00:03]}  Rb6+ {[%clk 0:00:08]} 70. Kg5 {[%clk 0:00:04]}  Ke6 {[%clk 0:00:07]} 71. Kh4 {[%clk 0:00:05]}  Kf7 {[%clk 0:00:08]} 72. Rf4+ {[%clk 0:00:05]}  Kg7 {[%clk 0:00:08]} 73. Rf5 {[%clk 0:00:06]}  Rb4 {[%clk 0:00:09]} 74. Rg5+ {[%clk 0:00:07]}  Kh6 {[%clk 0:00:09]} 75. Rg6+ {[%clk 0:00:07]}  Kh7 {[%clk 0:00:09]} 76. Rf6 {[%clk 0:00:08]}  Kg7 {[%clk 0:00:09]} 77. Rf5 {[%clk 0:00:08]}  Kh6 {[%clk 0:00:09]} 78. Rf6+ {[%clk 0:00:07]}  Kg7 {[%clk 0:00:10]} 79. Kg5 {[%clk 0:00:07]}  Rb5+ {[%clk 0:00:09]} 80. Rf5 {[%clk 0:00:07]}  Rb6 {[%clk 0:00:09]} 81. h6+ {[%clk 0:00:07]}  Kh7 {[%clk 0:00:06]} 82. Rf7+ {[%clk 0:00:07]}  Kg8 {[%clk 0:00:06]} 83. Rg7+ {[%clk 0:00:07]}  Kh8 {[%clk 0:00:06]} 84. Kh5 {[%clk 0:00:07]}  Rb1 {[%clk 0:00:05]} 85. Rc7 {[%clk 0:00:06]}  Rh1+ {[%clk 0:00:03]} 86. Kg6 {[%clk 0:00:06]}  Rb1 {[%clk 0:00:04]} 87. Rc8# {[%clk 0:00:06]} 1-0


[Site "https://www.chess.com"]